Cogmind - Beta 12 X4 @@@ ROGUE MODE // 2022.09.27 @ 02:08:58 Player: cptwinky Result: Destroyed by G-73 Enforcer with Backup Laser VII Performance ------------- Evolutions (6) 3000 Regions Visited (23) 4600 Robots Destroyed (777) 3885 Value Destroyed (32955) 32955 Prototype IDs (99) 1980 Alien Tech Used (0) 0 Bonus (28416) 28416 TOTAL SCORE: 74836 Bonus ------- Triggered High Security 2000 High Alert Combat Kills 22555 Follower Combat Kills 1726 Aligned with FarCom 300 Met Data Miner 300 Met Imprinter 300 Met Warlord at Base 500 MAIN.C Attacked Warlord 500 Warlord Defense Kills 634 Friendly Fire -399 Cogmind --------- Core Integrity 0/1150 Matter 237/300 Energy 58/100 System Corruption 17% Temperature Cool (9) Movement Core (50) Location -4/Factory Parts ------- > --- POWER (2) -------- (None) > --- PROPULSION (6) --- (None) > --- UTILITY (8) ------ Advanced Targeting Computer Improved Corruption Screen > --- WEAPON (3) ------- (None) > --- INVENTORY (5) ---- Experimental Hacking Suite Ghost Barrier Hacking Drone Bay (1/1) Firepult Peak State ------------ > --- POWER ------------ Light Antimatter Reactor Light Quantum Reactor > --- PROPULSION ------- Improved Heavy Treads Biometal Heavy Treads Biometal Heavy Treads > --- UTILITY ---------- Experimental Cooling System Huge Storage Unit Advanced Targeting Computer Improved Core Shielding Improved Medium Armor Plating Improved Medium Armor Plating Improved Remote Shield Advanced System Shield > --- WEAPON ----------- Heavy Phase Cannon Enhanced Coil Gun Mass Driver > --- INVENTORY -------- Vortex Chain Reactor Improved Coolant Injector Matter Compressor Long-range Sensor Array Long-range Terrain Scanner Makeshift Salvage Targeting Computer Experimental Melee Analysis Suite Precision Matter Filter Improved Transmission Jammer Improved Remote Force Field Ghost Barrier Authchip [Device] Improved Corruption Screen Long-range Tractor Beam Hacking Drone Bay Long-range Proton Cannon Long-range Proton Cannon HERF Cannon Vortex Driver Firepult Micro-nuke Launcher Advanced Datajack CR-A16's Behemoth Slayer [Rating: 141] Favorites ----------- Power Cooled Ion Engine Engine Cooled Ion Engine Power Core Hybrid Fission Core Reactor Antimatter Reactor Propulsion Light Treads Treads Light Treads Leg Aluminum Leg Wheel Armored Huge Wheel Hover Unit Cooled Antigrav System Flight Unit Improved Diametric Drive Utility Huge Storage Unit Device Advanced Sensor Array Storage Huge Storage Unit Processor Advanced Targeting Computer Hackware Hacking Suite Protection Improved Medium Armor Plating Weapon Gauss Rifle Energy Gun Cooled Pulse Rifle Energy Cannon Long-range Proton Cannon Ballistic Gun Gauss Rifle Ballistic Cannon Improved Light Cannon Launcher Guided Missile Launcher Special Weapon Improved Remote Datajack Impact Weapon Impact Mace Slashing Weapon Makeshift Sword Piercing Weapon CR-A16's Pointy Stick Special Melee Weapon Datajack Build | -11 -10 -10 -9 -9 -9 -8 -8 -7 -7 -7 -7 -6 -6 -6 -6 -6 -5 -5 -5 -5 -5 -4 -4 ------- Run | Scr Mat Min Mat Min Exi Min Mat Fac Low Low Dat Pro Fac Low Low Zio Pro Fac Upp Upp War Pro Fac Slots Evolved 12 | . . . 2 . . . 2 2 . . . . 2 . . . . 2 . . . . 2 Power 1 | . . . . . . . . . . . . . . . . . . 1 . . . . . Propulsion 4 | . . . 1 . . . . 1 . . . . . . . . . 1 . . . . 1 Utility 6 | . . . 1 . . . 1 1 . . . . 2 . . . . . . . . . 1 Weapon 1 | . . . . . . . 1 . . . . . . . . . . . . . . . . Parts Attached 793 | 2 22 2 49 4 6 8 58 117 8 8 1 8 134 18 41 12 14 111 16 13 23 19 99 Power 42 | . 2 . 4 . 1 . 2 3 . . . . 6 1 1 . . 14 . . 1 1 6 Engine 15 | . 2 . 4 . 1 . 2 2 . . . . 2 . . . . 2 . . . . . Core 14 | . . . . . . . . 1 . . . . 3 1 1 . . 6 . . 1 1 . Reactor 13 | . . . . . . . . . . . . . 1 . . . . 6 . . . . 6 Propulsion 88 | 2 2 2 10 . 1 1 12 17 2 . . 1 11 1 2 . 2 8 . . 5 1 8 Treads 70 | 2 1 1 8 . 1 1 12 13 2 . . 1 8 . 2 . . 7 . . 2 1 8 Leg 2 | . . . . . . . . . . . . . . . . . . 1 . . 1 . . Wheel 14 | . 1 1 2 . . . . 4 . . . . 3 1 . . 2 . . . . . . Hover 1 | . . . . . . . . . . . . . . . . . . . . . 1 . . Flight 1 | . . . . . . . . . . . . . . . . . . . . . 1 . . Utility 300 | . 6 . 10 4 . 2 17 37 . 5 . . 53 5 21 7 5 48 11 7 9 12 41 Device 175 | . 1 . 3 2 . 1 4 15 . 2 . . 27 2 16 5 3 39 9 5 5 11 25 Storage 6 | . 4 . . . . . . . . . . . 1 . . . . 1 . . . . . Processor 19 | . . . 1 . . . 1 3 . 1 . . 4 1 . . . . 2 1 2 1 2 Hackware 7 | . . . . . . . 1 . . . . . 3 . . . 1 . . . . . 2 Protection 93 | . 1 . 6 2 . 1 11 19 . 2 . . 18 2 5 2 1 8 . 1 2 . 12 Artifact . | . . . . . . . . . . . . . . . . . . . . . . . . Weapon 363 | . 12 . 25 . 4 5 27 60 6 3 1 7 64 11 17 5 7 41 5 6 8 5 44 Energy Gun 54 | . 2 . . . . . 2 22 2 1 . 4 9 1 2 . 1 1 . 1 . 1 5 Energy Cannon 31 | . . . . . . . . . . . . . 4 1 1 . . 11 1 . . 1 12 Ballistic Gun 105 | . 3 . . . . . 7 4 2 . . . 28 7 8 2 5 14 3 4 3 2 13 Ballistic Cannon 43 | . 2 . 14 . 1 3 7 5 1 . . . 1 . 1 . . 5 . . . . 3 Launcher 81 | . 4 . 7 . 1 2 8 21 . 1 1 2 11 . 4 1 1 7 1 . . 1 8 Special Weapon 3 | . 1 . . . . . . . . . . . . . . . . . . . 2 . . Impact Weapon 20 | . . . . . . . 2 6 . . . . 10 2 . . . . . . . . . Slashing Weapon 1 | . . . . . 1 . . . . . . . . . . . . . . . . . . Piercing Weapon 9 | . . . . . . . . . . . . . . . . . . 2 . 1 3 . 3 Special Melee Weapon 16 | . . . 4 . 1 . 1 2 1 1 . 1 1 . 1 2 . 1 . . . . . Unidentified Prototypes 21 | . . . 2 1 . . 2 3 . . . . 1 . 1 1 . 3 . . 4 . 3 Corrupted Parts 2 | . . . . . . . . 1 . . . . . . . . . . . . 1 . . System Corruption 9 | . . . . . . . . 1 . . . . . . . . . . . . 8 . . Parts Lost 107 | . . . . . . . 11 23 . . . . 22 . 1 . . 18 . 1 2 2 27 Power 15 | . . . . . . . 1 3 . . . . 3 . . . . 2 . . . . 6 Propulsion 22 | . . . . . . . 4 4 . . . . 5 . . . . 4 . . 1 . 4 Utility 34 | . . . . . . . 2 6 . . . . 7 . . . . 6 . 1 1 2 9 Weapon 36 | . . . . . . . 4 10 . . . . 7 . 1 . . 6 . . . . 8 Highest Loss Streak 12 | . . . . . . . 3 3 . . . . 4 . 1 . . 9 . 1 2 1 12 To Critical Strikes 1 | . . . . . . . . . . . . . . . . . . 1 . . . . . Average Slot Usage (%) 89 | . 94 100 99 100 100 100 99 94 90 92 92 92 91 79 92 88 92 80 82 81 81 81 78 Engine 3 | . 14 14 11 11 11 11 9 6 . . . . 1 . . . . 1 . . . . . Core 3 | . . . . . . . . . 7 7 7 7 3 5 6 6 6 2 5 5 7 11 3 Reactor 1 | . . . . . . . . . . . . . 1 . . . . 6 5 5 2 . 6 Treads 18 | . 20 18 27 33 33 33 26 20 11 15 15 15 14 6 18 20 19 13 17 17 16 11 14 Wheel 2 | . 7 9 5 . . . . 4 8 7 7 7 6 2 . . . 1 . . . . . Device 6 | . 1 . . 1 . . . 4 . 1 . . 2 13 12 10 9 9 11 10 14 17 11 Storage 7 | . 14 14 11 11 11 11 9 7 7 7 7 7 5 6 6 6 6 5 5 5 5 5 4 Processor 11 | . . . 3 11 11 11 9 13 15 15 15 15 17 20 20 20 19 11 11 11 7 10 8 Hackware 2 | . . . . . . . 9 4 . . . . 3 . . . . 1 . . . . 4 Protection 8 | . 7 14 18 9 11 10 8 7 15 13 15 15 12 3 6 8 9 5 5 5 5 5 7 Energy Gun 2 | . 4 . . . . . . 10 18 22 15 22 8 . . . . . . . . . 2 Ballistic Gun 9 | . 6 . . . . . 13 6 1 . . . 9 19 19 8 19 10 11 14 14 16 7 Ballistic Cannon 5 | . 14 28 20 22 . 20 12 2 2 . . . . . . . . 2 . . . . 1 Naked Turns . | . . . . . . . . . . . . . . . . . . . . . . . . Heaviest Build 185 | 11 103 103 106 103 102 103 106 118 116 116 116 116 124 108 112 116 116 185 172 168 156 158 165 Greatest Support 225 | 40 40 40 60 60 60 60 62 96 56 28 28 28 140 70 110 110 110 178 178 178 178 150 225 Greatest Overweight (x) 32 | . 8 8 8 1 1 1 1 4 4 4 4 4 4 3 3 1 3 32 1 1 1 1 3 Average Overweight (x) 1 | . 3 6 3 1 1 1 1 1 3 3 3 4 1 2 . . . . . . . . . Largest Inventory Capacity 25 | 8 25 25 25 25 25 25 25 25 25 25 25 25 25 25 25 25 25 25 25 25 25 25 25 Average Capacity 24 | 8 17 25 25 25 25 25 25 25 25 25 25 25 24 25 25 25 25 25 25 25 25 25 24 Most Carried 25 | 6 21 21 25 25 25 25 25 25 25 25 25 25 25 25 25 25 25 25 25 25 25 25 25 Average Carried 23 | 6 14 21 24 24 24 24 24 24 24 24 25 25 23 17 24 24 24 23 24 24 24 24 24 Final Capacity 25 | 8 25 25 25 25 25 25 25 25 25 25 25 25 25 25 25 25 25 25 25 25 25 25 5 Final Carried 25 | 6 21 21 25 25 25 25 25 23 25 25 25 25 17 25 25 25 24 25 25 25 24 25 5 Class Distribution -------------------- 18% | Mutant 18% | Gunner 15% | Scavenger-Gunner 9% | Trapper-Mutant 9% | Trapper-Skirmisher 7% | Scavenger-Mutant 5% | Scavenger-Tank 4% | Tank 3% | Derelict-Gunner Dominant Class ---------------- Mutant | -10/Materials Mutant | -10/Mines Mutant | -9/Materials Trapper-Mutant | -9/Mines Scavenger-Mutant | -9/Exiles Trapper-Mutant | -8/Mines Trapper-Skirmisher | -8/Materials Trapper-Skirmisher | -7/Factory Gunner | -7/Lower Caves Gunner | -7/Lower Caves Mutant | -7/Data Miner Gunner | -6/Proximity Caves Gunner | -6/Factory Gunner | -6/Lower Caves Scavenger-Gunner | -6/Lower Caves Scavenger-Mutant | -6/Zion Scavenger-Gunner | -5/Proximity Caves Scavenger-Gunner | -5/Factory Mutant | -5/Upper Caves Gunner | -5/Upper Caves Scavenger-Tank | -5/Warlord Scavenger-Gunner | -4/Proximity Caves Scavenger-Tank | -4/Factory Resources | -11 -10 -10 -9 -9 -9 -8 -8 -7 -7 -7 -7 -6 -6 -6 -6 -6 -5 -5 -5 -5 -5 -4 -4 ----------- Run | Scr Mat Min Mat Min Exi Min Mat Fac Low Low Dat Pro Fac Low Low Zio Pro Fac Upp Upp War Pro Fac Matter Collected 21742 | 220 437 126 1169 186 96 478 2324 2746 169 130 . 130 3205 249 835 94 236 4379 429 204 434 545 2921 Remotely 5085 | . . . . . . 133 538 832 . . . . 880 . 169 . . 1744 . 76 50 . 663 Salvage Created 39448 | . 458 65 1398 28 . 440 2325 6528 108 93 . 233 6980 121 826 . 103 8717 975 113 417 1137 8383 Parts 1677 | . 26 4 98 . . 34 129 267 10 10 . 13 237 3 26 . 11 332 44 5 8 45 375 Haulers Intercepted 23 | . 1 . 6 . . . 6 3 . . . . 2 . 1 . . . . . . . 4 Recyclers Shooed 31 | . 2 . 4 1 . 1 . 4 . . . . 5 . . . . 4 . . . . 10 Parts Field Recycled . | . . . . . . . . . . . . . . . . . . . . . . . . Retrieved Matter . | . . . . . . . . . . . . . . . . . . . . . . . . Parts Self-Destructed 161 | . . . . . . . . . 12 11 . 11 . . 24 . 37 . 19 11 . 36 . Prevented 37 | . . . . . . . . . . . . . . . . . . . 26 3 . 8 . Kills | -11 -10 -10 -9 -9 -9 -8 -8 -7 -7 -7 -7 -6 -6 -6 -6 -6 -5 -5 -5 -5 -5 -4 -4 ------- Run | Scr Mat Min Mat Min Exi Min Mat Fac Low Low Dat Pro Fac Low Low Zio Pro Fac Upp Upp War Pro Fac Combat Hostiles Destroyed 752 | . 11 4 44 2 . 25 53 150 4 5 . 9 131 . 17 . 5 129 18 2 6 18 119 Melee 7 | . . . . . . . . 5 . . . . 1 . . . . . . . . . 1 Guns 245 | . 4 . . . . . 11 47 2 3 . 2 48 . 10 . . 54 2 2 6 14 40 Cannons 116 | . . 4 28 2 . 9 20 3 . . . . 7 . . . . 24 2 . . . 17 AOE 314 | . 7 . 16 . . 16 22 88 2 2 . 7 49 . 7 . 5 33 10 . . 1 49 Classes Destroyed 23 | . 9 . 3 1 . 1 2 2 1 . . . 1 1 . . 1 . . . . . 1 Worker 32 | . 1 . 1 . . 1 4 6 . . . . 1 . . . . 6 . . . . 12 Builder 28 | . 1 . 1 . . . 5 6 . . . . 1 . . . . 6 . . . . 8 Tunneler 5 | . . . . . . . . 1 . . . . 2 . . . . 1 . . . . 1 Hauler 23 | . 1 . 6 . . . 6 3 . . . . 2 . 1 . . . . . . . 4 Recycler 26 | . 1 . 1 1 . 1 3 6 . . . . 2 . . . . 7 . . . . 4 Minesweeper 2 | . . . . . . . . . . . . . . . . . 1 . . . . 1 . Mechanic 25 | . 1 . . . . . 2 12 . . . . 4 . . . . 4 . . . . 2 Operator 5 | . 2 . 1 . . . . . . . . . 1 . . . . . . . . . 1 Watcher 22 | . 1 . 2 . . . 5 4 . . . . 2 . . . . 2 . . . . 6 Swarmer 102 | . 3 3 14 . . 16 5 2 3 5 . 4 9 . 7 . 5 5 8 . . 4 9 Saboteur 11 | . . . . . . . . . . . . . 4 . . . . 4 . . . . 3 Grunt 359 | . 8 1 19 . . 7 30 76 . . . 4 53 . 9 . . 66 2 . 6 9 69 Brawler 35 | . . . . . . 1 2 12 . . . . 5 . . . . 8 1 . . 2 4 Duelist 46 | . . . 3 . . 1 2 16 . . . . 5 . . . . 11 4 . . . 4 Protector 26 | . . . . . . . 1 8 . . . . 9 . . . . 4 . . . . 4 Sentry 37 | . . . 8 . . . 9 4 . . . 1 3 . . . . 5 1 . . 1 5 Hunter 71 | . . . . . . . 4 22 . . . . 24 . . . . 10 2 . . 2 7 Programmer 61 | . . . . . . . . 10 . . . . 19 . . . . 16 . 2 2 . 12 Behemoth 2 | . . . . . . . . . . . . . . . . . . . . . . . 2 Zionite 1 | . . . 1 . . . . . . . . . . . . . . . . . . . . Decomposer 1 | . . . . . . . . . . . . . . 1 . . . . . . . . . Tinkerer 1 | . . . . . . . . . . . . . . 1 . . . . . . . . . Assembled 2 | . . . . 2 . . . . . . . . . . . . . . . . . . . Mutant 3 | . . . . . . . . . 1 . . . . 1 1 . . . . . . . . Best Kill Streak 31 | . 10 2 5 1 . 7 7 16 4 3 . 6 31 . 4 . 4 16 12 1 4 4 12 Combat Bots Only 21 | . 6 2 5 1 . 7 6 15 3 3 . 6 21 . 4 . 4 15 12 1 4 4 8 Max Kills in Single Turn 12 | . 3 1 3 1 . 3 3 12 2 2 . 2 8 1 3 . 4 4 3 1 2 3 7 Gunslinging 1 | . . . . . . . . 1 . 1 . . 1 . 1 . . 1 . . 1 1 1 Exploded 9 | . 3 . 3 . . 3 3 9 2 2 . 2 8 . 3 . 4 4 3 . . 1 7 Melee 1 | . . . . . . . . 1 . . . . 1 . . . . . . . . . 1 Uniques/NPCs Destroyed . | . . . . . . . . . . . . . . . . . . . . . . . . Combat | -11 -10 -10 -9 -9 -9 -8 -8 -7 -7 -7 -7 -6 -6 -6 -6 -6 -5 -5 -5 -5 -5 -4 -4 -------- Run | Scr Mat Min Mat Min Exi Min Mat Fac Low Low Dat Pro Fac Low Low Zio Pro Fac Upp Upp War Pro Fac Damage Taken 36240 | . 323 53 832 178 . 254 2522 6439 112 233 . 355 7198 . 812 . 306 5673 107 64 1250 721 8808 Core 3556 | . 5 6 63 32 . 4 270 645 . . . 30 622 . 94 . 27 491 4 . 68 36 1159 Absorbed by Shields 3744 | . . . . . . . . 72 . . . . . . . . . 1476 117 31 305 355 1388 Reduced by Siege Mode 399 | . . . . . . . . . . . . . . . 30 . . 125 . . . . 244 Redirected to Shielding 111 | . . . 11 . . . . . . . . . . . . . . 82 . . . . 18 Regen/Repaired (Parts) 3088 | . 80 . 172 . . . 250 258 . . . . 390 . . 96 . 383 . . 262 . 1197 Core Remaining (%) 53 | 100 . 95 . . . 75 50 . . . . 3 . . . . 12 . . . . 40 . Volleys Fired 1517 | . 34 6 87 8 . 39 161 241 12 4 . 12 182 9 49 . 9 315 27 5 21 34 262 Largest 3 | . 2 2 2 2 . 2 3 3 3 3 . 3 3 3 3 . 1 3 3 3 3 3 3 Hottest 278 | . 100 78 78 78 . 78 103 199 73 125 . 125 278 86 126 . 70 250 142 101 99 99 177 Shots Fired 3424 | . 55 12 155 16 . 65 414 568 19 8 . 22 485 19 107 . 9 710 33 15 47 88 577 Gun 2256 | . 28 . . . . . 173 441 18 6 . 15 433 19 95 . 4 483 6 15 39 82 399 Cannon 865 | . 14 12 142 16 . 53 213 48 . . . . 30 . 7 . . 181 9 . . 1 139 Launcher 292 | . 10 . 13 . . 12 28 79 1 2 . 7 22 . 5 . 5 46 18 . . 5 39 Special 11 | . 3 . . . . . . . . . . . . . . . . . . . 8 . . Kinetic 2337 | . 28 12 142 16 . 53 386 155 10 . . . 333 19 86 . . 608 6 15 39 82 347 Thermal 661 | . 17 . . . . . . 334 8 6 . 15 130 . 6 . . 16 . . . . 129 Explosive 187 | . 10 . 13 . . 12 28 67 1 2 . 7 22 . 5 . 5 2 . . . . 13 Electromagnetic 231 | . . . . . . . . 12 . . . . . . 10 . 4 84 27 . . 6 88 Robot Hit Streak 55 | . 8 4 19 9 . 10 17 37 11 4 . 16 55 8 22 . 6 24 12 8 24 27 29 Robot Miss Streak 6 | . 6 2 3 2 . 4 4 6 1 2 . . 4 1 2 . 1 5 1 2 5 1 4 Penetration Max 1 | . . . . . . . . . . . . . 1 . 1 . . 1 . . 1 1 1 Secondary Targets 38 | . . . . . . . . 2 . 2 . . 9 . 2 . . 6 . . 3 2 12 Max Gunslinging Chain 1 | . . . . . . . . 1 . 1 . . 1 . 1 . . 1 . . 1 1 1 Shots Hit Robots 2353 | . 23 7 100 9 4 37 241 405 14 4 1 16 379 15 66 1 5 484 18 10 49 62 403 Core Hits 1990 | . 26 5 73 4 . 42 137 430 8 7 . 20 361 6 44 . 17 358 31 2 16 42 361 Critical Kills 42 | . . . . . . . . 8 1 . . . 12 . 1 . . 4 . . . 2 14 Critical Parts Destroyed 64 | . . . . . . . 1 9 1 . . . 13 2 3 . . 14 . . . 3 18 Critical Strikes 156 | . 1 1 2 2 . 2 8 29 2 . . . 31 2 4 . . 31 . . . 5 36 Burn 16 | . 1 . . . . . . 11 . . . . 4 . . . . . . . . . . Destroy 104 | . . . . . . . 1 12 2 . . . 25 2 4 . . 18 . . . 5 35 Blast 29 | . . 1 2 2 . 2 7 . . . . . 2 . . . . 12 . . . . 1 Corrupt 1 | . . . . . . . . . . . . . . . . . . 1 . . . . . Smash 6 | . . . . . . . . 6 . . . . . . . . . . . . . . . Melee Attacks 112 | . . . 4 . 4 . 4 34 5 . 1 1 20 6 1 1 . 7 . 1 14 . 9 Impact 61 | . . . . . . . 2 33 . . . . 20 6 . . . . . . . . . Slashing . | . . . . . . . . . . . . . . . . . . . . . . . . Piercing 31 | . . . . . . . . . . . . . . . . . . 7 . 1 14 . 9 Sneak Attacks 35 | . . . 4 . 4 . . 6 5 . 1 1 4 . 1 1 . . . 1 7 . . Combat Hostiles 6 | . . . . . . . . 4 . . . . . . 1 . . . . 1 . . . Follow-up Attacks . | . . . . . . . . . . . . . . . . . . . . . . . . Damage Inflicted 104630 | . 1006 189 3274 188 . 1492 7125 22825 329 273 . 904 14920 253 1823 . 739 19661 1433 314 1392 1881 24609 Guns 35251 | . 179 . . . . . 1679 6358 170 91 . 226 5991 253 1102 . 48 8049 81 248 905 1539 8332 Cannons 14488 | . 120 171 2013 188 . 649 2764 647 . . . . 1000 . . . . 3695 203 . . 36 3002 Explosions 52472 | . 696 . 1261 . . 832 2671 14678 159 182 . 678 7591 . 721 . 691 7856 1149 . . 306 13001 Melee 2079 | . . . . . . . . 1139 . . . . 323 . . . . . . 66 449 . 102 Ramming 340 | . 11 18 . . . 11 11 3 . . . . 15 . . . . 61 . . 38 . 172 Kinetic 35907 | . 185 171 2013 188 . 649 4443 1860 41 . . . 4627 253 1084 . . 10458 81 248 905 1539 7162 Thermal 25920 | . 114 . . . . 47 . 8156 129 91 . 226 6582 . 44 . 44 4332 71 . . . 6084 Explosive 27884 | . 696 . 1261 . . 785 2671 10221 159 182 . 678 3373 . 677 . 647 146 . . . . 6388 Electromagnetic 12500 | . . . . . . . . 1446 . . . . . . 18 . 48 4664 1281 . . 342 4701 Impact 1462 | . . . . . . . . 1139 . . . . 323 . . . . . . . . . . Slashing . | . . . . . . . . . . . . . . . . . . . . . . . . Piercing 617 | . . . . . . . . . . . . . . . . . . . . 66 449 . 102 Highest Corruption 17 | . . . 2 4 4 4 . 8 4 4 . . 3 3 1 . . 8 4 . 5 3 17 Average Corruption 4 | . . . 2 2 4 4 . 6 4 3 . . 2 2 1 . . 4 4 . 5 3 6 Corruption Purged 34 | . . . . . . . . 5 . 4 . . 7 3 1 . . 14 . . . . . Corruption Blocked 9 | . . . . . . . . 8 . . . . . . . . . . . . . . 1 Effects 308 | . . . 8 9 16 30 . 20 11 1 . . 24 2 1 . . 86 7 . 1 5 87 Message Errors 71 | . . . 1 1 6 6 . 9 1 . . . 4 . . . . 24 3 . . 1 15 Matter Fused 81 | . . . 2 6 3 12 . . 6 . . . 5 . 1 . . 17 . . . 1 28 Heat Flow Errors 36 | . . . 2 . 1 4 . 2 2 . . . 2 1 . . . 11 2 . . 1 8 Energy Discharges 38 | . . . 2 1 2 3 . 6 1 1 . . 4 . . . . 6 1 . . 1 10 Parts Rejected 3 | . . . . . . . . . . . . . . . . . . 1 . . . . 2 Data Loss (minor) 31 | . . . . . 2 1 . 3 . . . . 5 . . . . 10 1 . 1 1 7 Data Loss (major) 12 | . . . . 1 1 1 . . 1 . . . . 1 . . . 4 . . . . 3 Misfires 10 | . . . . . . 2 . . . . . . 3 . . . . 3 . . . . 2 Alerts 11 | . . . . . 1 1 . . . . . . 1 . . . . 5 . . . . 3 Misdirections 3 | . . . . . . . . . . . . . . . . . . . . . . . 3 Weapon Failures 12 | . . . 1 . . . . . . . . . . . . . . 5 . . . . 6 Overload Shots . | . . . . . . . . . . . . . . . . . . . . . . . . Overflow Damage 1994 | . 11 . 11 22 . 16 77 751 . . . 24 159 . . . 57 371 . . 45 . 450 Projectiles 332 | . . . 11 22 . . 14 18 . . . . . . . . . 219 . . . . 48 Explosions 1172 | . 11 . . . . 16 63 425 . . . 24 66 . . . 57 122 . . . . 388 Melee 490 | . . . . . . . . 308 . . . . 93 . . . . 30 . . 45 . 14 Knockbacks 95 | . 1 2 12 6 . 7 18 12 . . . . 10 . . . . 20 . . 1 . 6 Impact 9 | . . . . . . . . 2 . . . . 1 . . . . 2 . . 1 . 3 Kinetic 84 | . 1 2 12 6 . 6 18 10 . . . . 8 . . . . 18 . . . . 3 Secondary 2 | . . . . . . 1 . . . . . . 1 . . . . . . . . . . Self-Inflicted Damage 2057 | . 54 . . . . 10 139 570 41 . . . 543 . . . . 41 6 . . . 653 Shots 63 | . 3 . . . . 2 5 15 1 . . . 16 . . . . 3 2 . . . 16 Rammed 25 | . 2 3 . . . 1 3 1 . . . . 1 . . . . 2 . . 2 . 10 Targets Rammed 28 | . 3 3 . . . 1 4 1 . . . . 2 . . . . 2 . . 2 . 10 Kicked . | . . . . . . . . . . . . . . . . . . . . . . . . Crushed 3 | . 1 . . . . . 1 . . . . . 1 . . . . . . . . . . Highest Temperature 474 | . 135 135 474 24 198 262 301 213 261 106 . 207 349 97 12 . . 373 235 . 264 193 196 Average Temperature 65 | . 32 45 63 11 104 69 66 58 77 54 . 83 86 72 10 . . 87 69 . 90 103 24 Received Heat Transfer 7973 | . 168 15 279 . . 126 918 1466 . . . 93 1406 . 246 . 36 1421 12 . 274 26 1487 Effects 9 | . . . 2 . . 3 . . . . . . 1 . . . . 3 . . . . . Energy Bleed 2 | . . . 1 . . . . . . . . . . . . . . 1 . . . . . Interference 5 | . . . 1 . . 3 . . . . . . 1 . . . . . . . . . . Short Circuit 1 | . . . . . . . . . . . . . . . . . . 1 . . . . . Damage (minor) 1 | . . . . . . . . . . . . . . . . . . 1 . . . . . Siege Activations 35 | . . . . . . . . . . . . . . . 2 . . 18 1 . . 1 13 Total Turns 1186 | . . . . . . . . . . . . . . . 50 . . 613 34 . . 156 333 Longest Duration 156 | . . . . . . . . . . . . . . . 27 . . 140 34 . . 156 48 Robots Corrupted 29 | . . . . . . . . 2 . . . . . . . . . 9 4 . . 3 11 Combat Hostiles 28 | . . . . . . . . 2 . . . . . . . . . 9 4 . . 3 10 Parts Fried 86 | . . . . . . . . 7 . . . . 3 . . . . 25 12 . . 4 35 Impact Corruptions 14 | . . . . . . . . 8 . . . . 4 . . . . 1 . . . . 1 Robots Melted 37 | . . . . . . . . 2 . . . . 26 . . . . 9 . . . . . Combat Hostiles 37 | . . . . . . . . 2 . . . . 26 . . . . 9 . . . . . Parts Melted 203 | . . . . . . . . 13 . . . 1 157 . . . . 27 . . . 1 4 Heat Transferred 51539 | . 407 . . . . 50 . 11093 259 211 . 483 24801 . 80 . 50 8425 150 . . . 5530 Parts Sabotaged 7 | . . . . . . . . . . . . . 2 . . . . . . . . . 5 Parts Stolen . | . . . . . . . . . . . . . . . . . . . . . . . . Parts Stripped . | . . . . . . . . . . . . . . . . . . . . . . . . Power Chain Reactions 27 | . . . . . . . . 3 . . . . . . . . 1 17 3 . . . 3 Missiles Intercepted . | . . . . . . . . . . . . . . . . . . . . . . . . Alert | -11 -10 -10 -9 -9 -9 -8 -8 -7 -7 -7 -7 -6 -6 -6 -6 -6 -5 -5 -5 -5 -5 -4 -4 ------- Run | Scr Mat Min Mat Min Exi Min Mat Fac Low Low Dat Pro Fac Low Low Zio Pro Fac Upp Upp War Pro Fac Peak Influence 4439 | . 496 131 1148 455 . 499 1083 4439 . . . . 3746 . . . . 3656 . . . . 3874 Initial 492 | . . 50 . 447 . . 125 492 . . . . 10 . . . . 31 . . . . 10 Average 897 | . 232 41 624 347 . 331 616 1397 . . . . 987 . . . . 1211 . . . . 1132 Maximum Alert Level 5 | . 2 . 4 2 . 2 3 5 . . . . 5 . . . . 5 . . . . 5 Low Security (%) 16 | 100 49 100 6 1 . . 12 . . . . . 10 . . . . 8 . . . . 36 Level 1 13 | . 47 . 7 49 . 77 13 18 . . . . 6 . . . . 4 . . . . . Level 2 23 | . 3 . 61 49 . 22 34 10 . . . . 30 . . . . 11 . . . . 7 Level 3 20 | . . . 23 . . . 39 24 . . . . 17 . . . . 26 . . . . 5 Level 4 10 | . . . 1 . . . . 8 . . . . 18 . . . . 22 . . . . 16 Level 5 9 | . . . . . . . . 17 . . . . . . . . . 20 . . . . 22 High Security 7 | . . . . . . . . 19 . . . . 15 . . . . 5 . . . . 11 Max Security . | . . . . . . . . . . . . . . . . . . . . . . . . Sterilizations 5 | . . . 1 . . . 1 1 . . . . 1 . . . . 1 . . . . . Squads Dispatched 210 | . 2 . 12 . . . 11 50 . . . . 49 . . . . 49 . . . . 37 Investigation 33 | . 1 . 8 . . . 1 7 . . . . 7 . . . . 7 . . . . 2 Extermination 20 | . . . . . . . . 6 . . . . 4 . . . . 5 . . . . 5 Reinforcement 37 | . 1 . 3 . . . 4 7 . . . . 8 . . . . 8 . . . . 6 Assault 109 | . . . 1 . . . 4 28 . . . . 27 . . . . 25 . . . . 24 Garrison 11 | . . . . . . . 2 2 . . . . 3 . . . . 4 . . . . . Intercept . | . . . . . . . . . . . . . . . . . . . . . . . . Searches Triggered . | . . . . . . . . . . . . . . . . . . . . . . . . Data Miner Redirects 24 | . . . . . . . . . . . . . 7 . . . . 12 . . . . 5 Construction Impeded 13 | . . . 1 . . . 1 2 . . . . 3 . . . . 3 . . . . 3 Haulers Reinforced 12 | . . . . . . . . 3 . . . . 3 . . . . 4 . . . . 2 Active Scanning Responses . | . . . . . . . . . . . . . . . . . . . . . . . . Cargo Convoy Interrupts 1 | . . . . . . . . 1 . . . . . . . . . . . . . . . Stealth | -11 -10 -10 -9 -9 -9 -8 -8 -7 -7 -7 -7 -6 -6 -6 -6 -6 -5 -5 -5 -5 -5 -4 -4 --------- Run | Scr Mat Min Mat Min Exi Min Mat Fac Low Low Dat Pro Fac Low Low Zio Pro Fac Upp Upp War Pro Fac Distress Signals 15 | . . . 3 . . . 3 2 . . . . . . . . . 3 . . . . 4 Communications Jammed 64 | . . . . . . . . . . . . . . . . . . 36 . . . . 28 Distress Signals 63 | . . . . . . . . . . . . . . . . . . 35 . . . . 28 Times Spotted 1149 | . 19 7 69 2 . 18 80 248 2 7 . 8 201 . 19 . 16 193 17 3 36 23 181 Peak Tracking Total 24 | . 5 2 4 1 . 5 6 18 1 4 . 3 19 . 5 . 5 11 9 2 13 5 24 Tactical Retreats 50 | . . 2 . . . 3 5 12 . 1 . . 7 . 1 . . 8 2 . . 2 7 Traps | -11 -10 -10 -9 -9 -9 -8 -8 -7 -7 -7 -7 -6 -6 -6 -6 -6 -5 -5 -5 -5 -5 -4 -4 ------- Run | Scr Mat Min Mat Min Exi Min Mat Fac Low Low Dat Pro Fac Low Low Zio Pro Fac Upp Upp War Pro Fac Traps Triggered 13 | . . . 3 2 . . . . . . . . 3 . . . . 4 . . . . 1 Indirectly 1 | . . . . . . . . . . . . . . . . . . . . . . . 1 Trap Hack Attempts 265 | . . . 139 . . . 18 5 . . . . 20 . . . . 83 . . . . . Triggered 2 | . . . 1 . . . 1 . . . . . . . . . . . . . . . . Disarmed 3 | . . . 3 . . . . . . . . . . . . . . . . . . . . Reprogrammed 28 | . . . 14 . . . 1 1 . . . . 3 . . . . 9 . . . . . Reused 30 | . . . 3 3 . . 1 4 . . . . 6 . . . . 8 . . . 3 2 Traps Extracted 15 | . . . 8 4 . . . . . . . . 3 . . . . . . . . . . Installed 20 | . . . . 4 . . . 4 . . . . 7 . . . . . . . . 3 2 Triggered 41 | . . . 3 . . . 1 8 . . . . 6 . . . 3 8 . . 7 3 2 Most Traps Carried 8 | . . . 8 8 8 8 8 8 4 4 4 4 6 . . . . . . . . 1 1 Machines | -11 -10 -10 -9 -9 -9 -8 -8 -7 -7 -7 -7 -6 -6 -6 -6 -6 -5 -5 -5 -5 -5 -4 -4 ---------- Run | Scr Mat Min Mat Min Exi Min Mat Fac Low Low Dat Pro Fac Low Low Zio Pro Fac Upp Upp War Pro Fac Machines Disabled 132 | . 1 . 6 . . 2 3 17 . . . . 17 1 2 . . 28 . . . . 55 Max in Single Turn 19 | . 1 . 2 . . 1 1 2 . . . . 5 1 1 . . 7 . . . . 19 Garrison Access 9 | . . . . . . . 1 2 . . . . 2 . . . . 3 . . . . 1 Machines Sabotaged . | . . . . . . . . . . . . . . . . . . . . . . . . Overloaded Fab Kills . | . . . . . . . . . . . . . . . . . . . . . . . . Hacking | -11 -10 -10 -9 -9 -9 -8 -8 -7 -7 -7 -7 -6 -6 -6 -6 -6 -5 -5 -5 -5 -5 -4 -4 --------- Run | Scr Mat Min Mat Min Exi Min Mat Fac Low Low Dat Pro Fac Low Low Zio Pro Fac Upp Upp War Pro Fac Machines Accessed 110 | . 4 1 15 1 2 . 10 17 1 1 3 . 20 . 2 . . 18 . . 3 . 12 Terminals 47 | . 2 1 10 . . . 5 6 . . . . 10 . 1 . . 8 . . . . 4 Fabricators 14 | . . . . . . . . 4 . . . . 4 . . . . 4 . . . . 2 Repair Stations 14 | . 1 . 2 . . . 2 4 . . . . 2 . . . . 1 . . . . 2 Recycling Units 11 | . 1 . 2 . . . . 1 . . . . 1 . . . . 3 . . . . 3 Scanalyzers 4 | . . . 1 . . . 2 . . . . . 1 . . . . . . . . . . Garrison Access 8 | . . . . . . . 1 2 . . . . 2 . . . . 2 . . . . 1 Total Hacks 296 | . 10 4 41 1 2 . 31 40 1 1 22 . 45 . 2 . . 41 . . 10 . 45 Successful 174 | . 7 . 27 1 2 . 18 22 1 1 22 . 24 . 2 . . 17 . . 10 . 20 Failed 122 | . 3 4 14 . . . 13 18 . . . . 21 . . . . 24 . . . . 25 Catastrophic 18 | . . . 1 . . . . 1 . . . . 5 . . . . 5 . . . . 6 Database Lockouts . | . . . . . . . . . . . . . . . . . . . . . . . . Manual 106 | . 5 4 21 . 1 . 20 15 . . . . 10 . . 1 . 10 . . 2 . 17 Terminals 138 | . 5 4 29 . . . 23 14 . . . . 19 . 1 . . 21 . . . . 22 Fabricators 35 | . . . . . . . . 9 . . . . 11 . . . . 11 . . . . 4 Repair Stations 35 | . 3 . 4 . . . 4 11 . . . . 4 . . . . 1 . . . . 8 Recycling Units 27 | . 2 . 4 . . . . 4 . . . . 2 . . . . 5 . . . . 10 Scanalyzers 11 | . . . 4 . . . 3 . . . . . 4 . . . . . . . . . . Garrison Access 12 | . . . . . . . 1 2 . . . . 5 . . . . 3 . . . . 1 Terminal Hacks 72 | . 3 . 12 1 2 . 3 1 1 1 22 . 6 . 2 . . 4 . . 10 . 4 Record 12 | . . . . . 1 . . . . . 6 . . . 1 . . . . . 4 . . Part Schematic 10 | . . . 1 . . . . . . . 9 . . . . . . . . . . . . Robot Schematic 5 | . . . 1 . . . . . . . 4 . . . . . . . . . . . . Robot Analysis 5 | . 2 . 2 . . . . . . . . . 1 . . . . . . . . . . Prototype ID Bank 12 | . 1 . 1 . . . . 1 . . 3 . 1 . . . . . . . 5 . . Open Door 5 | . . . . 1 . . . . 1 1 . . . . 1 . . . . . 1 . . Branch Access Points 5 | . . . 1 . . . 1 . . . . . 1 . . . . 1 . . . . 1 Machine Index 1 | . . . . . . . . . . . . . 1 . . . . . . . . . . Unreport Threat 5 | . . . 1 . . . 2 . . . . . . . . . . 1 . . . . 1 Locate Traps 4 | . . . 2 . . . . . . . . . 2 . . . . . . . . . . Reprogram Traps 3 | . . . 1 . . . . . . . . . . . . . . 2 . . . . . Registered Components 1 | . . . 1 . . . . . . . . . . . . . . . . . . . . Registered Prototypes 1 | . . . . . . . . . . . . . . . . . . . . . . . 1 Zone Layout 2 | . . . 1 . . . . . . . . . . . . . . . . . . . 1 EX-Prototype ID Bank 1 | . . . . . 1 . . . . . . . . . . . . . . . . . . Fabricator Hacks 21 | . . . . . . . . 6 . . . . 7 . . . . 6 . . . . 2 Network Status 4 | . . . . . . . . 1 . . . . 1 . . . . 1 . . . . 1 Load Schematic 7 | . . . . . . . . 2 . . . . 3 . . . . 2 . . . . . Build 10 | . . . . . . . . 3 . . . . 3 . . . . 3 . . . . 1 Repair Station Hacks 26 | . 2 . 4 . . . 4 7 . . . . 4 . . . . . . . . . 5 Scan Component 14 | . 1 . 2 . . . 2 4 . . . . 2 . . . . . . . . . 3 Repair 12 | . 1 . 2 . . . 2 3 . . . . 2 . . . . . . . . . 2 Recycling Unit Hacks 7 | . 1 . 2 . . . . 1 . . . . . . . . . 1 . . . . 2 Retrieve Components 7 | . 1 . 2 . . . . 1 . . . . . . . . . 1 . . . . 2 Scanalyzer 5 | . . . 3 . . . . . . . . . 2 . . . . . . . . . . Insert Component 3 | . . . 2 . . . . . . . . . 1 . . . . . . . . . . Analyze 2 | . . . 1 . . . . . . . . . 1 . . . . . . . . . . Garrison Access Hacks 4 | . . . . . . . . 1 . . . . . . . . . 2 . . . . 1 Seal Access 4 | . . . . . . . . 1 . . . . . . . . . 2 . . . . 1 Unauthorized Hacks 39 | . 1 . 6 . . . 11 6 . . . . 5 . . . . 4 . . . . 6 Terminals 25 | . . . 3 . . . 10 3 . . . . 3 . . . . 3 . . . . 3 Track 5 | . . . . . . . 3 1 . . . . 1 . . . . . . . . . . Assimilate 5 | . . . . . . . 1 . . . . . 1 . . . . 2 . . . . 1 Botnet 6 | . . . 1 . . . 1 . . . . . 1 . . . . 1 . . . . 2 Detonate 1 | . . . . . . . . 1 . . . . . . . . . . . . . . . Disrupt 6 | . . . . . . . 5 1 . . . . . . . . . . . . . . . Search 2 | . . . 2 . . . . . . . . . . . . . . . . . . . . Fabricators 2 | . . . . . . . . . . . . . . . . . . . . . . . 2 Prioritize 1 | . . . . . . . . . . . . . . . . . . . . . . . 1 Recompile 1 | . . . . . . . . . . . . . . . . . . . . . . . 1 Repair Stations . | . . . . . . . . . . . . . . . . . . . . . . . . Recycling Units 7 | . 1 . 2 . . . . 2 . . . . . . . . . 1 . . . . 1 Reject 1 | . . . . . . . . 1 . . . . . . . . . . . . . . . Mask 3 | . . . . . . . . 1 . . . . . . . . . 1 . . . . 1 Tunnel 3 | . 1 . 2 . . . . . . . . . . . . . . . . . . . . Scanalyzers 1 | . . . 1 . . . . . . . . . . . . . . . . . . . . Extract 1 | . . . 1 . . . . . . . . . . . . . . . . . . . . Garrison Access 4 | . . . . . . . 1 1 . . . . 2 . . . . . . . . . . Reprogram 3 | . . . . . . . 1 1 . . . . 1 . . . . . . . . . . Jam 1 | . . . . . . . . . . . . . 1 . . . . . . . . . . Data Cores Recovered 2 | . 1 . . . . . . . . . . . . . . . . 1 . . . . . Used 1 | . . . . . . . . . . . . . . . . . . 1 . . . . . Hacking Detections 85 | . 4 1 12 . . . 10 14 . . . . 19 . . . . 15 . . . . 10 Full Trace Events 20 | . . 1 3 . . . . 6 . . . . 4 . . . . 5 . . . . 1 Feedback Events 1 | . . . . . . . . . . . . . 1 . . . . . . . . . . Corruption 1 | . . . . . . . . . . . . . 1 . . . . . . . . . . Feedback Blocked . | . . . . . . . . . . . . . . . . . . . . . . . . Robot Schematics Acquired 5 | . . . 1 . . . . . . . 4 . . . . . . . . . . . . Robots Built 3 | . . . . . . . . . . . . . . . . . . 2 . . . . 1 Authchips . | . . . . . . . . . . . . . . . . . . . . . . . . Time 273 | . . . . . . . . . . . . . . . . . . 121 . . . . 152 Total Robot Build Rating 7 | . . . . . . . . . . . . . . . . . . 2 . . . . 5 Part Schematics Acquired 18 | . . . 8 . . . . . . . 9 . 1 . . . . . . . . . . Parts Built 14 | . . . . . . . . 6 . . . . 6 . . . . 2 . . . . . Authchips . | . . . . . . . . . . . . . . . . . . . . . . . . Time 474 | . . . . . . . . 151 . . . . 254 . . . . 69 . . . . . Total Part Build Rating 74 | . . . . . . . . 22 . . . . 34 . . . . 18 . . . . . Parts Repaired 12 | . 1 . 2 . . . 2 3 . . . . 2 . . . . . . . . . 2 Time 433 | . 26 . 64 . . . 42 77 . . . . 76 . . . . . . . . . 148 Parts Recycled . | . . . . . . . . . . . . . . . . . . . . . . . . Recycled Matter . | . . . . . . . . . . . . . . . . . . . . . . . . Retrieved Matter . | . . . . . . . . . . . . . . . . . . . . . . . . Retrieved Components 41 | . 2 . 20 . . . . 10 . . . . . . . . . 9 . . . . . Parts Scanalyzed 2 | . . . 1 . . . . . . . . . 1 . . . . . . . . . . Part Schematics Acquired 2 | . . . 1 . . . . . . . . . 1 . . . . . . . . . . Parts Damaged . | . . . . . . . . . . . . . . . . . . . . . . . . Bothacking | -11 -10 -10 -9 -9 -9 -8 -8 -7 -7 -7 -7 -6 -6 -6 -6 -6 -5 -5 -5 -5 -5 -4 -4 ------------ Run | Scr Mat Min Mat Min Exi Min Mat Fac Low Low Dat Pro Fac Low Low Zio Pro Fac Upp Upp War Pro Fac Used RIF Installer . | . . . . . . . . . . . . . . . . . . . . . . . . Robots Hacked 12 | . . . 3 . 4 . 1 . . . 1 1 . . . 1 . . . . 1 . . Non-combat 7 | . . . 3 . 3 . 1 . . . . . . . . . . . . . . . . Combat 5 | . . . . . 1 . . . . . 1 1 . . . 1 . . . . 1 . . Robot Hacks Applied 13 | . . . 4 . 4 . 1 . . . 1 1 . . . 1 . . . . 1 . . parse_system 10 | . . . 2 . 4 . . . . . 1 1 . . . 1 . . . . 1 . . no_distress 3 | . . . 2 . . . 1 . . . . . . . . . . . . . . . . Relay Couplers Released 9 | . . . . . . . 2 3 . . . . 2 . . . . 2 . . . . . Machine Destruction 9 | . . . . . . . 2 3 . . . . 2 . . . . 2 . . . . . Fabnet Peak Effective % . | . . . . . . . . . . . . . . . . . . . . . . . . Robots Rewired 9 | . . . . . . . . 1 3 . . . . . 1 . . . 2 . 2 . . Allies Hacked 4 | . . . . . . . . . . . . . . . . . . . . 2 . . 2 Hacks Repelled . | . . . . . . . . . . . . . . . . . . . . . . . . Allies | -11 -10 -10 -9 -9 -9 -8 -8 -7 -7 -7 -7 -6 -6 -6 -6 -6 -5 -5 -5 -5 -5 -4 -4 -------- Run | Scr Mat Min Mat Min Exi Min Mat Fac Low Low Dat Pro Fac Low Low Zio Pro Fac Upp Upp War Pro Fac Total Allies 29 | . . 5 . . . . 2 3 3 . . 1 3 . 1 2 . 3 2 . 2 . 2 Largest Group 3 | . . 3 2 . . . 1 2 3 3 . 1 2 . 1 2 2 2 2 2 2 . 2 Highest-Rated Group 192 | . . 50 50 . . . 10 50 75 75 . 96 122 . 41 192 192 185 98 98 109 . 33 Highest-Rated Ally 96 | . . 31 31 . . . 10 30 25 25 . 96 96 . 41 96 96 96 49 49 68 . 23 Total Orders 38 | . . . . . . . 6 . . . . . 2 . . . 4 10 . . . . 16 STAY 17 | . . . . . . . 4 . . . . . 1 . . . . 5 . . . . 7 FOLLOW 13 | . . . . . . . 2 . . . . . 1 . . . . 2 . . . . 8 AID 3 | . . . . . . . . . . . . . . . . . . 3 . . . . . EXPLORE 5 | . . . . . . . . . . . . . . . . . 4 . . . . . 1 Ally Attacks 262 | . . 20 27 . . . . 17 . 8 . 3 57 . 2 . 67 26 12 8 15 . . Total Damage 8286 | . . 199 363 . . . . 534 . 233 . 45 1917 . 89 . 2261 1018 279 341 1007 . . Kills 63 | . . 4 8 . . . . 6 . 1 . . 13 . 1 . 19 6 1 2 2 . . Allies Corrupted 2 | . . . . . . . . . . . . . . . . . . 1 . 1 . . . Allies Melted . | . . . . . . . . . . . . . . . . . . . . . . . . Intel | -11 -10 -10 -9 -9 -9 -8 -8 -7 -7 -7 -7 -6 -6 -6 -6 -6 -5 -5 -5 -5 -5 -4 -4 ------- Run | Scr Mat Min Mat Min Exi Min Mat Fac Low Low Dat Pro Fac Low Low Zio Pro Fac Upp Upp War Pro Fac Robot Analysis Total 5 | . 2 . 2 . . . . . . . . . 1 . . . . . . . . . . Derelict Logs Recovered 11 | . . 2 . . . . . . . 1 . 1 . 2 1 1 1 . . 1 . 1 . Drone Launches 5 | . . . . . . . . . . . . . . . . . 4 . . . . . 1 Drone Recoveries 3 | . . . . . . . . . . . . . . . . . 3 . . . . . . Exploration | -11 -10 -10 -9 -9 -9 -8 -8 -7 -7 -7 -7 -6 -6 -6 -6 -6 -5 -5 -5 -5 -5 -4 -4 ------------- Run | Scr Mat Min Mat Min Exi Min Mat Fac Low Low Dat Pro Fac Low Low Zio Pro Fac Upp Upp War Pro Fac Turns Passed 51322 | 16 1272 1507 4385 815 729 1227 4282 4676 550 704 139 648 4433 2226 2521 1839 2462 6539 1912 1217 1274 2108 3841 Spaces Moved 20793 | 9 572 580 1287 305 297 441 1359 1735 329 359 89 377 1789 1035 1344 970 953 2275 872 650 705 921 1540 Core 75 | . . . . . . . . . . . . . . . . . . 4 . . . . 71 Treads 15299 | 9 286 151 609 305 297 441 1359 990 . . . . 983 483 1129 970 870 1800 872 650 705 921 1469 Legs . | . . . . . . . . . . . . . . . . . . . . . . . . Wheels 5419 | . 286 429 678 . . . . 745 329 359 89 377 806 552 215 . 83 471 . . . . . Hover . | . . . . . . . . . . . . . . . . . . . . . . . . Flight . | . . . . . . . . . . . . . . . . . . . . . . . . Fastest Speed 50 | 160 120 210 150 240 240 240 235 115 130 145 145 160 93 145 145 166 115 130 150 150 150 145 50 Average Speed 186 | 160 184 238 213 240 240 240 239 185 150 159 154 160 176 189 164 184 223 158 205 178 152 162 157 Slowest Speed 1650 | 160 210 320 240 240 240 240 240 240 160 160 160 160 246 240 246 246 246 1650 225 225 225 232 240 Overloaded Moves . | . . . . . . . . . . . . . . . . . . . . . . . . Propulsion Burnouts . | . . . . . . . . . . . . . . . . . . . . . . . . Robots Hopped . | . . . . . . . . . . . . . . . . . . . . . . . . Cave-ins Triggered 1 | . . . . . . . . . . . . . 1 . . . . . . . . . . Exploration Rate (%) 68 | 2 71 99 97 52 70 82 81 34 50 56 74 60 42 90 99 85 89 45 86 68 91 87 38 Regions Visited 23 Branch Regions 16 Pre-discovered Areas 7 | . 1 1 2 . 1 . . . . . 1 . . . . 1 . . . . . . . Known Exits Taken 9 | . . 1 1 . . . . 1 . . . . 1 1 1 1 1 1 . . . . . Unknown Exits Taken 14 | 1 1 . . 1 1 1 1 . 1 1 1 1 . . . . . . 1 1 1 1 . Scrap Searched 41 | . . 1 . 2 . 1 . . 2 2 . 1 . 10 3 4 5 . 3 2 . 5 . Spaces Dug 330 | . . . . . . 31 61 29 . . . 13 94 5 23 . . 21 6 . 3 . 44 Terrain Destroyed 2197 | . 51 . 69 1 . 106 224 407 16 17 . 69 333 5 59 . 25 289 11 2 9 9 495 Melee 38 | . . . . . . . 1 5 . . . . 14 5 . . . 7 . . 3 . 3 Projectile 228 | . . . 3 1 . 7 14 . . . . . 12 . 1 . . 78 . 2 6 9 95 AOE 1926 | . 51 . 66 . . 99 209 402 15 17 . 69 304 . 58 . 25 203 11 . . . 397 Terrain Rammed . | . . . . . . . . . . . . . . . . . . . . . . . . Walls Destroyed . | . . . . . . . . . . . . . . . . . . . . . . . . Machines Disabled . | . . . . . . . . . . . . . . . . . . . . . . . . Actions | -11 -10 -10 -9 -9 -9 -8 -8 -7 -7 -7 -7 -6 -6 -6 -6 -6 -5 -5 -5 -5 -5 -4 -4 --------- Run | Scr Mat Min Mat Min Exi Min Mat Fac Low Low Dat Pro Fac Low Low Zio Pro Fac Upp Upp War Pro Fac Total 30267 | 10 722 684 2760 373 311 544 2069 2691 364 482 90 400 2651 1273 1566 1021 1272 4607 953 692 840 1466 2426 Wait 6135 | . 52 94 1155 46 . 53 426 465 1 105 . 1 383 184 106 21 286 1741 29 15 57 471 444 Move 20770 | 8 571 579 1286 304 296 440 1358 1734 328 358 88 376 1787 1034 1343 969 952 2274 871 649 705 920 1540 Hop . | . . . . . . . . . . . . . . . . . . . . . . . . Pick Up 269 | . 23 . 16 3 2 1 20 47 5 2 . 1 46 14 10 8 2 27 1 2 6 10 23 Fast Attach 169 | . 9 . 10 1 . . 8 12 1 4 . . 33 4 5 . 4 30 4 5 7 2 30 Attach 155 | . . . 2 . . . 14 30 2 . . . 44 6 1 1 4 24 1 1 4 5 16 Detach 74 | . 2 . . . . . 2 6 1 . . . 31 4 1 . 1 12 2 1 2 . 9 Swap 469 | 2 13 2 37 3 6 8 36 75 5 4 1 8 57 8 35 11 6 57 11 7 12 12 53 Drop 275 | . 15 . 24 4 3 2 18 35 4 5 . 1 38 3 15 10 8 35 3 4 11 9 28 Fire 1517 | . 34 6 87 8 . 39 161 241 12 4 . 12 182 9 49 . 9 315 27 5 21 34 262 Melee 112 | . . . 4 . 4 . 4 34 5 . 1 1 20 6 1 1 . 7 . 1 14 . 9 Ram . | . . . . . . . . . . . . . . . . . . . . . . . . Kick . | . . . . . . . . . . . . . . . . . . . . . . . . Crush 27 | . 3 3 . . . 1 4 1 . . . . 2 . . . . 2 . . 1 . 10 Escape Stasis 1 | . . . . . . . . . . . . . 1 . . . . . . . . . . Rewire 9 | . . . . . . . . 2 . . . . . 1 . . . . 4 2 . . . Trap 285 | . . . 139 4 . . 18 9 . . . . 27 . . . . 83 . . . 3 2 Miscellaneous . | . . . . . . . . . . . . . . . . . . . . . . . . Route ------- -11/Scrapyard -10/Materials (discovered 3 exits: *Mat x2 / *Min) -10/Mines (discovered 2 exits: *Mat x2) -9/Materials (discovered 5 exits: *Mat x3 / *Min x2) -9/Mines -9/Exiles -8/Mines (discovered 2 exits: *Mat x2) -8/Materials (discovered 2 exits: *Fac x2) -7/Factory -7/Lower Caves -7/Lower Caves -7/Data Miner -6/Proximity Caves -6/Factory (discovered 4 exits: *Low x2 / Ext x2) -6/Lower Caves -6/Lower Caves (discovered 2 exits: *Fac / *Zio) -6/Zion -5/Proximity Caves -5/Factory (discovered 2 exits: *Upp x2) -5/Upper Caves -5/Upper Caves (discovered 2 exits: *Fac / *War) -5/Warlord -4/Proximity Caves -4/Factory (discovered 3 exits: [*Res] / *Upp x2) History --------- Turn | Location | Event 4 | -11/Scrapyard | Discovered new exit (range 3) 17 | -11/Scrapyard | Entered Materials 301 | -10/Materials | Build established: Mutant 318 | -10/Materials | Discovered new exit (range 8) 424 | -10/Materials | Repaired Lgt. Treads 478 | -10/Materials | Discovered new exit (range 14) 1007 | -10/Materials | Discovered new exit (range 15) 1289 | -10/Materials | Entered Mines 1289 | -10/Mines | Discovered new exit (range 10) 1319 | -10/Mines | Assisted by bots powering up and referring to "LRC-V3" 1581 | -10/Mines | Identified exit to Materials 1893 | -10/Mines | Learned location of Storage (-7) 2796 | -10/Mines | Entered Materials 2796 | -9/Materials | Accompanied by 2 allies 2796 | -9/Materials | Evolved 2 slots: Propulsion x1, Utility x1 2808 | -9/Materials | Led the pair of lost Derelicts to an unsafe place 3069 | -9/Materials | Identified exit to Mines 3394 | -9/Materials | Discovered new exit (range 12) 3743 | -9/Materials | Repaired Imp. Light Cannon 3839 | -9/Materials | Discovered new exit (range 5) 5501 | -9/Materials | Build established: Trapper-Mutant 5659 | -9/Materials | Discovered new exit (range 16) 5996 | -9/Materials | First assault squad dispatched 6560 | -9/Materials | Repaired Imp. Light Cannon 7118 | -9/Materials | Sterilization system engaged 7118 | -9/Materials | Non-combat units ordered to evacuate 7181 | -9/Materials | Entered Mines 7241 | -9/Mines | Found a damaged Exp. Sensor Array with a note attached 7247 | -9/Mines | Found Prototype Device 7247 | -9/Mines | Identified Exp. Sensor Array 7398 | -9/Mines | Met a Derelict who couldn't figure out how to use a Trap Extractor 7684 | -9/Mines | Assembled infested the area 7689 | -9/Mines | Assisted by a Guerilla fighting off Assembled 7984 | -9/Mines | Deemed a non-threat by the Exiles lab entrance 7986 | -9/Mines | Discovered new exit (range 5) 7996 | -9/Mines | Entered Exiles 8059 | -9/Exiles | Met 8R-AWN 8099 | -9/Exiles | Met EX-HEX 8256 | -9/Exiles | Met EX-DEC 8308 | -9/Exiles | Build established: Scavenger-Mutant 8325 | -9/Exiles | Learned location of Zion (-6) 8365 | -9/Exiles | Met EX-BIN 8403 | -9/Exiles | Aligned with FarCom system 8405 | -9/Exiles | Given EX-Vault access code 8463 | -9/Exiles | Opened EX-Vault 8479 | -9/Exiles | Found Firepult 8528 | -9/Exiles | Warned to stay clear of 0b10 Research branches 8694 | -9/Exiles | Discovered new exit (range 14) 8725 | -9/Exiles | Left Exiles lab with Firepult 8725 | -9/Exiles | Entered Mines 8754 | -8/Mines | Destroyed 7 combat bots 8775 | -8/Mines | Build established: Trapper-Mutant 9471 | -8/Mines | Discovered new exit (range 10) 9847 | -8/Mines | Discovered new exit (range 13) 9952 | -8/Mines | Entered Materials 9952 | -8/Materials | Evolved 2 slots: Utility x1, Weapon x1 10238 | -8/Materials | Build established: Trapper-Skirmisher 11862 | -8/Materials | Repaired Hrd. Light Armor Plating 12053 | -8/Materials | Garrison activated, responded to threat 12077 | -8/Materials | Discovered new exit (range 16) 12352 | -8/Materials | First assault squad dispatched 12390 | -8/Materials | Garrison activated, responded to threat 12501 | -8/Materials | Lost 3 parts (1n1u1w) 13203 | -8/Materials | Repaired Lgt. Treads 13226 | -8/Materials | Discovered new exit (range 8) 13600 | -8/Materials | Build established: Scavenger-Skirmisher 13990 | -8/Materials | Sterilization system engaged 13990 | -8/Materials | Non-combat units ordered to evacuate 14090 | -8/Materials | Combat units ordered to evacuate 14187 | -8/Materials | Build established: Trapper-Skirmisher 14234 | -8/Materials | Entered Factory 14234 | -7/Factory | Evolved 2 slots: Propulsion x1, Utility x1 14476 | -7/Factory | Repaired Lgt. Treads 14617 | -7/Factory | Fabricated Dispersion Rifle (x2) 14982 | -7/Factory | Discovered new exit (range 5) 15499 | -7/Factory | Garrison activated, responded to threat 15554 | -7/Factory | Destroyed 7 combat bots 15662 | -7/Factory | Fabricated Imp. Treads? 16075 | -7/Factory | Build established: Trapper-Mutant 16173 | -7/Factory | Cargo convoy interrupted 16339 | -7/Factory | Fabricated Imp. Treads? 16542 | -7/Factory | Repaired Adv. Treads 16670 | -7/Factory | Repaired Imp. Treads 16670 | -7/Factory | First assault squad dispatched 16848 | -7/Factory | Destroyed 7 combat bots 16979 | -7/Factory | Build established: Machinist-Skirmisher 17552 | -7/Factory | Build established: Trapper-Gunner 18005 | -7/Factory | High security lockdown imminent 18085 | -7/Factory | High security lockdown engaged 18229 | -7/Factory | Build established: Gunner 18386 | -7/Factory | Lost 3 parts (1p1u1w) 18473 | -7/Factory | Core integrity fell below 50% 18530 | -7/Factory | Destroyed 8 combat bots 18578 | -7/Factory | Destroyed 12 combat bots 18625 | -7/Factory | Core integrity fell below 20% 18638 | -7/Factory | Sterilization system engaged 18638 | -7/Factory | Non-combat units ordered to evacuate 18648 | -7/Factory | Lost 3 parts (1p2w) 18649 | -7/Factory | Destroyed 9 combat bots 18718 | -7/Factory | Destroyed 9 combat bots 18738 | -7/Factory | Combat units ordered to evacuate 18787 | -7/Factory | Destroyed 15 combat bots 18787 | -7/Factory | Lost 3 parts (2u1w) 18906 | -7/Factory | Identified exit to Lower Caves 18910 | -7/Factory | Entered Lower Caves 19241 | -7/Lower Caves | Attacked by a delusional Derelict stockpiling Unaware 19426 | -7/Lower Caves | Discovered new exit (range 8) 19460 | -7/Lower Caves | Entered another Lower Caves area 19460 | -7/Lower Caves | Accompanied by 3 allies 19760 | -7/Lower Caves | Spotted B-75 Beast 19861 | -7/Lower Caves | Learned Factory garrison access intel 19984 | -7/Lower Caves | Encountered a Warlord checkpoint 20019 | -7/Lower Caves | Discovered new exit (range 14) 20164 | -7/Lower Caves | Entered Data Miner 20164 | -7/Data Miner | Discovered new exit (range 6) 20192 | -7/Data Miner | Met Data Miner 20244 | -7/Data Miner | Learned location of Section 7 (-3) 20244 | -7/Data Miner | Acquired the access code to Warlord's prototype stash 20265 | -7/Data Miner | Received God Mode back door access code from Data Miner 20303 | -7/Data Miner | Entered Proximity Caves 20327 | -6/Proximity Caves | Attracted the attention of an 0b10 checkpoint 20447 | -6/Proximity Caves | Spotted B-75 Beast 20450 | -6/Proximity Caves | Escorted by Enhanced Grunt 20483 | -6/Proximity Caves | Learned Factory terminal intel 20614 | -6/Proximity Caves | Discovered new exit (range 11) 20951 | -6/Proximity Caves | Entered Factory 20951 | -6/Factory | Accompanied by 1 ally 20951 | -6/Factory | Evolved 2 slots: Utility x2 20952 | -6/Factory | Loaded intel: 27 terminal locations 20953 | -6/Factory | Loaded intel: 4 garrison access locations 21095 | -6/Factory | Identified exit to Lower Caves 21095 | -6/Factory | Identified exit to Extension 21322 | -6/Factory | Fabricated Hyb. Fission Core? 21349 | -6/Factory | Build established: Tank 21537 | -6/Factory | Crushed by falling debris 21817 | -6/Factory | Incoming investigation squad redirected 21993 | -6/Factory | Incoming investigation squad redirected 22351 | -6/Factory | First assault squad dispatched 22369 | -6/Factory | Incoming assault squad redirected 23103 | -6/Factory | Incoming investigation squad redirected 23140 | -6/Factory | Fabricated Hvy. Treads? 23247 | -6/Factory | Build established: Gunner 23261 | -6/Factory | Repaired Huge Storage Unit 23906 | -6/Factory | Repaired Imp. System Restoration Module? 23928 | -6/Factory | Incoming assault squad redirected 24119 | -6/Factory | Incoming assault squad redirected 24358 | -6/Factory | Incoming investigation squad redirected 24477 | -6/Factory | Fabricated Hvy. Treads? 24711 | -6/Factory | High security lockdown imminent 24791 | -6/Factory | High security lockdown engaged 24865 | -6/Factory | Garrison activated, responded to threat 24909 | -6/Factory | Destroyed 10 combat bots 24943 | -6/Factory | Core integrity fell below 50% 24951 | -6/Factory | Destroyed 10 combat bots 25003 | -6/Factory | Lost 3 parts (1n2w) 25005 | -6/Factory | Destroyed 7 combat bots 25046 | -6/Factory | Destroyed 7 combat bots 25132 | -6/Factory | Destroyed 21 combat bots 25201 | -6/Factory | Destroyed 8 combat bots 25323 | -6/Factory | Sterilization system engaged 25323 | -6/Factory | Non-combat units ordered to evacuate 25361 | -6/Factory | Destroyed 20 combat bots 25384 | -6/Factory | Entered Lower Caves 25407 | -6/Lower Caves | Lost 4 parts (1p1n2w) 26247 | -6/Lower Caves | Learned Factory terminal intel 26468 | -6/Lower Caves | Encountered a Warlord checkpoint 27053 | -6/Lower Caves | Build established: Derelict-Gunner 27177 | -6/Lower Caves | Identified exit to Lower Caves 27610 | -6/Lower Caves | Entered another Lower Caves area 27758 | -6/Lower Caves | Discovered new exit (range 13) 27807 | -6/Lower Caves | Identified exit to Factory 27923 | -6/Lower Caves | Attacked by a delusional Derelict stockpiling parts 28218 | -6/Lower Caves | Build established: Scavenger-Gunner 28295 | -6/Lower Caves | Core integrity fell below 20% 28965 | -6/Lower Caves | Discovered new exit (range 8) 29075 | -6/Lower Caves | Learned Factory emergency access door positions 30071 | -6/Lower Caves | Identified exit to Zion 30131 | -6/Lower Caves | Entered Zion 30247 | -6/Zion | Build established: Scavenger-Mutant 30290 | -6/Zion | Found CR-A16's Pointy Stick 30302 | -6/Zion | Discovered new exit (range 16) 30765 | -6/Zion | Found Prototype Launcher 30771 | -6/Zion | Identified Gui. Missile Launcher 30782 | -6/Zion | Found Gui. Missile Launcher 31165 | -6/Zion | Rebuked by Imprinter 31244 | -6/Zion | Given the Hacking Drone Bay 31245 | -6/Zion | Found Prototype Device 31251 | -6/Zion | Identified Hacking Drone Bay 31285 | -6/Zion | Learned location of 1 exit from Lower Caves 31428 | -6/Zion | Given A8's code to call for help 31651 | -6/Zion | Enhanced Grunt warped into view, answering call for help 31656 | -6/Zion | Enhanced Grunt warped into view, answering call for help 31967 | -6/Zion | Identified exit to Proximity Caves 31970 | -6/Zion | Entered Proximity Caves 31970 | -5/Proximity Caves | Accompanied by 2 allies 31972 | -5/Proximity Caves | Attracted the attention of an 0b10 checkpoint 31989 | -5/Proximity Caves | Learned Factory emergency access door positions 32281 | -5/Proximity Caves | Build established: Scavenger-Gunner 33174 | -5/Proximity Caves | Discovered exit to Factory (range 92) 34432 | -5/Proximity Caves | Entered Factory 34432 | -5/Factory | Accompanied by 2 allies 34432 | -5/Factory | Evolved 2 slots: Power x1, Propulsion x1 34434 | -5/Factory | Loaded intel: 26 terminal locations 34627 | -5/Factory | Build established: Derelict-Gunner 34992 | -5/Factory | Incoming investigation squad redirected 35271 | -5/Factory | Garrison activated, responded to threat 35309 | -5/Factory | Incoming assault squad redirected 35364 | -5/Factory | Destroyed 11 combat bots 35368 | -5/Factory | Lost 9 parts (1p2n4u2w) 35567 | -5/Factory | Fabricated Biometal Heavy Treads? 35610 | -5/Factory | Lost 4 parts (1p2n1w) 35632 | -5/Factory | First assault squad dispatched 35650 | -5/Factory | Incoming assault squad redirected 35882 | -5/Factory | Build established: Mutant 36085 | -5/Factory | Destroyed 9 combat bots 36480 | -5/Factory | Found Hvy. Reactive Plating 36559 | -5/Factory | Incoming assault squad redirected 36674 | -5/Factory | Identified exit to Upper Caves 36699 | -5/Factory | Incoming investigation squad redirected 36992 | -5/Factory | Build established: Gunner 37453 | -5/Factory | Incoming assault squad redirected 37798 | -5/Factory | Build established: Scavenger-Gunner 38556 | -5/Factory | Build established: Scavenger-Mutant 39067 | -5/Factory | Build established: Scavenger-Gunner 39190 | -5/Factory | Incoming investigation squad redirected 39255 | -5/Factory | Fabricated M-13 Machinist? 39442 | -5/Factory | Garrison activated, responded to threat 39549 | -5/Factory | Incoming assault squad redirected 39851 | -5/Factory | Incoming assault squad redirected 40207 | -5/Factory | Incoming assault squad redirected 40295 | -5/Factory | Incoming assault squad redirected 40372 | -5/Factory | Incoming investigation squad redirected 40394 | -5/Factory | Fabricated M-13 Machinist (x1) 40608 | -5/Factory | High security lockdown imminent 40632 | -5/Factory | Destroyed 9 combat bots 40688 | -5/Factory | High security lockdown engaged 40754 | -5/Factory | Destroyed 15 combat bots 40953 | -5/Factory | Sterilization system engaged 40953 | -5/Factory | Non-combat units ordered to evacuate 40971 | -5/Factory | Entered Upper Caves 41000 | -5/Upper Caves | Destroyed 12 combat bots 41071 | -5/Upper Caves | Build established: Mutant 41368 | -5/Upper Caves | Encountered a Warlord checkpoint 41406 | -5/Upper Caves | Attracted the attention of an 0b10 outpost 41407 | -5/Upper Caves | Destroyed 7 combat bots 42520 | -5/Upper Caves | Build established: Gunner 42569 | -5/Upper Caves | Discovered new exit (range 3) 42883 | -5/Upper Caves | Entered another Upper Caves area 42883 | -5/Upper Caves | Accompanied by 2 allies 42887 | -5/Upper Caves | Encountered a Warlord checkpoint 42889 | -5/Upper Caves | Discovered new exit (range 11) 43862 | -5/Upper Caves | Learned Factory terminal intel 43870 | -5/Upper Caves | Discovered new exit (range 3) 43997 | -5/Upper Caves | P-70 Sage assimilated allied Sentinel 6b 44100 | -5/Upper Caves | Entered Warlord 44153 | -5/Warlord | System corruption cleaned by Quarantine Array 44748 | -5/Warlord | Received a Watcher feed algorithm from an ecstatic Tinkerer 44819 | -5/Warlord | Build established: Mutant 44847 | -5/Warlord | Met Warlord 44863 | -5/Warlord | Opened Warlord's prototype stash 44870 | -5/Warlord | Found Prototype Reactor 44872 | -5/Warlord | Warlord's base attacked by MAIN.C 44905 | -5/Warlord | Found Ghost Barrier 44909 | -5/Warlord | Found Prototype Processor 44909 | -5/Warlord | Identified Spectral Analyzer 45011 | -5/Warlord | Found Prototype Energy Cannon 45176 | -5/Warlord | Build established: Scavenger-Tank 45222 | -5/Warlord | Warlord forces counterattacked 45227 | -5/Warlord | Spotted Executioner 45228 | -5/Warlord | Spotted Striker 45266 | -5/Warlord | Found Exp. Core Analyzer 45287 | -5/Warlord | Spotted Striker 45287 | -5/Warlord | Spotted Striker 45287 | -5/Warlord | Spotted Striker 45306 | -5/Warlord | Allies destroyed Striker 45344 | -5/Warlord | Discovered new exit (range 15) 45373 | -5/Warlord | Spotted Executioner 45373 | -5/Warlord | Spotted Striker 45374 | -5/Warlord | Core integrity fell below 50% 45374 | -5/Warlord | Entered Proximity Caves 45376 | -4/Proximity Caves | Attracted the attention of an 0b10 checkpoint 45847 | -4/Proximity Caves | Learned Research terminal intel 45868 | -4/Proximity Caves | Build established: Scavenger-Gunner 46289 | -4/Proximity Caves | Received a Behemoth hack from an annoying Tinkerer 47098 | -4/Proximity Caves | Discovered new exit (range 13) 47482 | -4/Proximity Caves | Entered Factory 47482 | -4/Factory | Evolved 2 slots: Propulsion x1, Utility x1 47484 | -4/Factory | Loaded intel: 25 terminal locations 47684 | -4/Factory | Repaired Biometal Heavy Treads 47760 | -4/Factory | Repaired Biometal Heavy Treads 47781 | -4/Factory | Build established: Derelict-Skirmisher 47781 | -4/Factory | Discovered new exit (range 23) 48128 | -4/Factory | Build established: Derelict-Tank 48353 | -4/Factory | Discovered new exit (range 14) 48408 | -4/Factory | Identified exit to Upper Caves 48525 | -4/Factory | Spotted B-86 Titan 48540 | -4/Factory | Revealed the true nature of CR-A16's Pointy Stick 48543 | -4/Factory | Destroyed B-86 Titan 48845 | -4/Factory | Spotted B-86 Titan 48846 | -4/Factory | Destroyed B-86 Titan 48980 | -4/Factory | Fabricated M-22 Extractor? 49056 | -4/Factory | Incoming investigation squad redirected 49191 | -4/Factory | Build established: Scavenger-Tank 49232 | -4/Factory | First assault squad dispatched 49237 | -4/Factory | Destroyed 7 combat bots 49251 | -4/Factory | Incoming assault squad redirected 49869 | -4/Factory | Found Prototype Processor 49932 | -4/Factory | Identified Vortex Chain Reactor 49948 | -4/Factory | Identified Vortex Driver 49970 | -4/Factory | System corruption reached 10% 50014 | -4/Factory | Lost 4 parts (1p2u1w) 50042 | -4/Factory | Destroyed 7 combat bots 50254 | -4/Factory | Incoming assault squad redirected 50500 | -4/Factory | Incoming assault squad redirected 50558 | -4/Factory | Identified Exp. Melee Analysis Suite 50755 | -4/Factory | Incoming assault squad redirected 50873 | -4/Factory | High security lockdown imminent 50924 | -4/Factory | Destroyed 8 combat bots 50953 | -4/Factory | High security lockdown engaged 51089 | -4/Factory | Destroyed 8 combat bots 51091 | -4/Factory | Found Prototype Hackware 51178 | -4/Factory | Destroyed 8 combat bots 51250 | -4/Factory | Core integrity fell below 50% 51264 | -4/Factory | Core integrity fell below 20% 51281 | -4/Factory | Destroyed 8 combat bots 51292 | -4/Factory | Lost 12 parts (3p3n1u5w) 51323 | -4/Factory | Destroyed by G-73 Enforcer with Backup Laser VII Last Messages --------------- 51284_ Penetrated by Slug. 51287_ Acquired Prototype Energy Cannon. 51287_ Identified Lrn. Phase Cannon. 51287_ Slug penetrates Wall. 51295_ System corrupted: Matter fused (-10). 51302_ Slug penetrates Wall. 51302_ Slug penetrates Fusion Modulator. 51313_ System corrupted: Lrn. Phase Cannon rejected. 51313_ Acquired Lrn. Phase Cannon. 51315_ Fusion Modulator explodes. 51315_ G-73 Enforcer destroyed. 51315_ H-77 Assassin destroyed. 51315_ G-67 Veteran destroyed. 51315_ Fusion Modulator explodes. 51315_ H-77 Assassin destroyed. 51315_ Neutrino Reactor explodes. 51315_ Destroyed Flexi-carbon Leg. 51317_ Dropped Lrn. Phase Cannon. 51318_ M-36 Artificer fits Backup Laser VII on G-73 Enforcer. 51320_ M-36 Artificer fits Backup Power VII on G-73 Enforcer. Map ----- +----------------------------------------------------+ | ??# ##################"##+#####??????? ??#???###?# | | ??# # ##????# #??????????????#???? | | ??# # ##???# #???????????#?###### | | ??#/ # # # #???# #??????????????????# | | ??#=/ #???# #??????#???######### | | ?##= * ! ##### ########+### " | | ## =! ! " ## # """"" ## # | | # " === ##??# # "" # # "" | | ?## %! ##??# # " " | | ?#" * #??#######+### = " | | ?## ! ##?????# # =% " | | ??# ####### " =% " | | ??# T + + % " | | ??# ![ ###### " [= % =" | | ??# %== # #####; " =%# | | ??# ## ;;; #####+### *# | | ??#"+###" #;;## ;;; ### #######+###### | | ??## + % ; ;## | | ???# # /%= ; > % | | ???# # % %[ ### " | | #### # %%!!m!g%= ;## "%" ##+########### | | # !=! =[ ;####%#### ????????? | | " =%!= ## ##%#??# """"??????? | | ###+""" ###?# #??# """" "????? | | #???# #??# """" ""???? | | """""#@###???# #??# """" ""???? | | ########?????# #??# """???????? | | #????????????# #??# ""????????? | | #?????######## #??# ?????????? | | ###"""" g ######### ! !=#??? ??????? | | # C*%= ] ! ## # ##?# "?????? | | # [ ## #!"### ""????? | | # """ ##== + == # ????? | | # [ ! """ ##== #% ###??? | | / % % """ ##== ??# #??? | | # ####+??## % #??? | | # = #??????# #??? | | # " * #??????# # #??? | | # """########??????# #### | | ###""""""" ??????????????### # | | #?### ""######?????????????## %= ! ]# | | #???#### #?????????????# = % % # | | #??????# """" #########+#???# # | | #??????# """" # #???# # #### * | | ######## """" # #???# !% ### | | # """" # """ """ #???# /!!!! "# | | # """" + """ """ #??## ]!!!! # | | # """" # """ """ #??#" !!]!/ | | + # #?##" ] | | # # * #?# " | +----------------------------------------------------+ Best States ------------- Heat Dissipation 81 Coolant Potential 65 Energy Generation 55 Energy Capacity 1125 Matter Stores 300 Matter Capacity 300 Sight Range 24 Robot Scan Range 20 Terrain Scan Range 24 Terrain Scan Density 210 Jamming Range 14 Corruption Containment 8 Corruption Block 14 Armor Coverage 1650 Resistance: KI 40 Resistance: TH 20 Resistance: EM 20 Core Shielding 30 Propulsion Shielding 33 Weapon Shielding 66 Evasion (%) 50 Targeting Accuracy 28 Melee Accuracy 12 Core Analysis 8 Recoil Reduction 6 Matter Filtering 50 Salvage Targeting 2 Offensive Hacking 20 Defensive Hacking 14 Authchip Count 1 Trap Extractor Capacity 4 Item Schematics ----------------- Huge Storage Unit | -9/Materials | Hacked Arm. Wheel | -9/Materials | Scanalyzed Imp. EM Shotgun | -9/Materials | Extracted Targeting Computer | -9/Materials | Extracted Imp. Treads | -9/Materials | Extracted Imp. Light Cannon | -9/Materials | Extracted Propulsion Shielding | -9/Materials | Extracted Autogun | -9/Materials | Extracted Combat Drone Bay | -7/Data Miner | Free Lgt. Regenerative Plating | -7/Data Miner | Free Biomechanical Wings | -7/Data Miner | Free Thermal Defense Suite | -7/Data Miner | Free Prc. Rocket Launcher | -7/Data Miner | Free Hvy. Treads | -7/Data Miner | Free Imp. Transmission Jammer | -7/Data Miner | Free Hvy. Shock Bomb Launcher | -7/Data Miner | Free Adv. Datajack | -7/Data Miner | Free Plasma Rifle | -6/Factory | Scanalyzed Robot Schematics ------------------ M-13 Machinist | -9/Materials | Hacked O-24 Administrator | -7/Data Miner | Free H-66 Slayer | -7/Data Miner | Free H-55 Commando | -7/Data Miner | Free A-15 Conveyor | -7/Data Miner | Free Fabricated ------------ Dispersion Rifle | x2 | -7/Factory | Preloaded Imp. Treads | x2 | -7/Factory Imp. Treads | x2 | -7/Factory Hyb. Fission Core | x2 | -6/Factory | Preloaded Hvy. Treads | x2 | -6/Factory Hvy. Treads | x2 | -6/Factory Biometal Heavy Treads | x2 | -5/Factory | Preloaded M-13 Machinist | x1 | -5/Factory M-13 Machinist | x1 | -5/Factory M-22 Extractor | x1 | -4/Factory | Preloaded Alien Tech Used ----------------- None Achievements -------------- None Challenges ------------ None Game ------ Seed ShieldMissileSource Manual? 0 Play Time 04:40:08 Cumulative 1197.1 hours Start 2022.09.25 @ 15:59:10 End 2022.09.27 @ 02:08:58 Sessions 11 Manual Loads 0 Difficulty Rogue Special Mode None Game No. 828 Rogue 824 Adventurer 4 Explorer 0 Win Type - Total 129 Types 99/9/8/5/2/0/1/3/2 Lore% 94 Gallery% 98 Achievement% 98 Wizard Run 0 Options --------- ASCII 0 Keyboard 1 Movement Vi Keybinds 0 Fullscreen 0 Font 20/X11 Map View 76x50 Tactical HUD 1 Map Filters NONE Filters NONE Steam 1 RUN: 7bd0dc6f-e486-4215-a3af-3256007d76e0